[Event "*** Titled Tuesday Blitz"]
[Site "Chess.com"]
[Date "2020.05.26"]
[Round "5"]
[White "GM_dmitrij"]
[Black "VincentKeymer"]
[Result "0-1"]
[WhiteElo "2928"]
[BlackElo "2839"]
[TimeControl "180+1"]
[EndTime "10:55:15 PDT"]
[Termination "VincentKeymer won on time"]

1. e4 {[%clk 0:03:00.9]} 1... e6 {[%clk 0:03:00.1]} 2. d4 {[%clk 0:02:58.1]}
2... d5 {[%clk 0:03:00.5]} 3. exd5 {[%clk 0:02:50.8]} 3... exd5 {[%clk
0:03:00.1]} 4. Nf3 {[%clk 0:02:51.7]} 4... Bd6 {[%clk 0:02:59.8]} 5. c4 {[%clk
0:02:51.3]} 5... Nf6 {[%clk 0:02:59.7]} 6. Nc3 {[%clk 0:02:50.5]} 6... O-O
{[%clk 0:02:53.7]} 7. c5 {[%clk 0:02:46]} 7... Be7 {[%clk 0:02:52.8]} 8. Bd3
{[%clk 0:02:45.3]} 8... Bg4 {[%clk 0:02:50.8]} 9. h3 {[%clk 0:02:42]} 9... Bh5
{[%clk 0:02:50.2]} 10. Be3 {[%clk 0:02:29.7]} 10... b6 {[%clk 0:02:48.1]} 11. g4
{[%clk 0:02:13]} 11... Bg6 {[%clk 0:02:45.7]} 12. Bxg6 {[%clk 0:02:11.7]} 12...
hxg6 {[%clk 0:02:46.6]} 13. Ne5 {[%clk 0:01:59.5]} 13... c6 {[%clk 0:02:35.2]}
14. Qc2 {[%clk 0:01:18.5]} 14... Nfd7 {[%clk 0:02:31.2]} 15. Nxd7 {[%clk
0:01:02.6]} 15... Nxd7 {[%clk 0:02:32.1]} 16. cxb6 {[%clk 0:00:54.5]} 16... axb6
{[%clk 0:02:28.3]} 17. h4 {[%clk 0:00:54.5]} 17... Nf6 {[%clk 0:01:51.7]} 18. h5
{[%clk 0:00:51.8]} 18... Qe8 {[%clk 0:01:42.4]} 19. hxg6 {[%clk 0:00:24.9]}
19... fxg6 {[%clk 0:01:43.3]} 20. Qe2 {[%clk 0:00:24.5]} 20... Bb4 {[%clk
0:01:38.5]} 21. Kd1 {[%clk 0:00:04.8]} 21... Bxc3 {[%clk 0:01:29.5]} 22. bxc3
{[%clk 0:00:05.7]} 22... Ne4 {[%clk 0:01:30]} 23. Kc2 {[%clk 0:00:03.7]} 23...
Ra3 {[%clk 0:01:25.4]} 24. g5 {[%clk 0:00:02.1]} 24... Rxc3+ {[%clk 0:01:24.1]}
25. Kb2 {[%clk 0:00:02.6]} 25... c5 {[%clk 0:01:13.1]} 26. a4 {[%clk 0:00:02.2]}
26... c4 {[%clk 0:01:10.5]} 27. Qg4 {[%clk 0:00:01.5]} 27... Qe7 {[%clk
0:01:06]} 0-1

[Event "*** Titled Tuesday Blitz"]
[Site "Chess.com"]
[Date "2020.05.26"]
[Round "5"]
[White "RestartingChess"]
[Black "Antelacus"]
[Result "1-0"]
[WhiteElo "2456"]
[BlackElo "2249"]
[TimeControl "180+1"]
[EndTime "10:55:15 PDT"]
[Termination "RestartingChess won by resignation"]

1. e4 {[%clk 0:03:00.9]} 1... c5 {[%clk 0:02:59.8]} 2. Nf3 {[%clk 0:03:01]} 2...
d6 {[%clk 0:03:00.1]} 3. Bb5+ {[%clk 0:03:00.3]} 3... Bd7 {[%clk 0:02:59]} 4. a4
{[%clk 0:03:00.5]} 4... g6 {[%clk 0:02:57.2]} 5. Nc3 {[%clk 0:03:00.1]} 5... Bg7
{[%clk 0:02:56.7]} 6. O-O {[%clk 0:03:00.6]} 6... Nf6 {[%clk 0:02:56.2]} 7. d3
{[%clk 0:03:01]} 7... O-O {[%clk 0:02:55.3]} 8. h3 {[%clk 0:03:01.4]} 8... Nc6
{[%clk 0:02:50.6]} 9. Bg5 {[%clk 0:03:00]} 9... Nd4 {[%clk 0:02:42]} 10. Bxd7
{[%clk 0:02:49.5]} 10... Qxd7 {[%clk 0:02:40.1]} 11. Nxd4 {[%clk 0:02:49.5]}
11... cxd4 {[%clk 0:02:39.8]} 12. Ne2 {[%clk 0:02:50.1]} 12... Ne8 {[%clk
0:02:28.5]} 13. Qd2 {[%clk 0:02:45.4]} 13... Nc7 {[%clk 0:02:26.1]} 14. Bh6
{[%clk 0:02:43.7]} 14... e5 {[%clk 0:02:18.4]} 15. Bxg7 {[%clk 0:02:42.4]} 15...
Kxg7 {[%clk 0:02:19.3]} 16. f4 {[%clk 0:02:43]} 16... f5 {[%clk 0:02:11.5]} 17.
Ng3 {[%clk 0:02:42.8]} 17... exf4 {[%clk 0:02:03.8]} 18. Qxf4 {[%clk 0:02:35.4]}
18... Ne6 {[%clk 0:01:58]} 19. Qd2 {[%clk 0:02:35.1]} 19... f4 {[%clk
0:01:56.8]} 20. Ne2 {[%clk 0:02:34.2]} 20... Qf7 {[%clk 0:01:48.2]} 21. Qb4
{[%clk 0:02:13.8]} 21... Rac8 {[%clk 0:01:24.2]} 22. Nxd4 {[%clk 0:02:07.5]}
22... Nxd4 {[%clk 0:01:11.9]} 23. Qxd4+ {[%clk 0:02:08.4]} 23... Qf6 {[%clk
0:01:11.6]} 24. Qxf6+ {[%clk 0:02:07.2]} 24... Rxf6 {[%clk 0:01:11.4]} 25. c3
{[%clk 0:02:08]} 25... g5 {[%clk 0:01:11.1]} 26. Ra3 {[%clk 0:02:03.2]} 26...
Re6 {[%clk 0:01:07]} 27. Rb3 {[%clk 0:02:03.3]} 27... b6 {[%clk 0:01:06.9]} 28.
Rb5 {[%clk 0:02:03.6]} 28... h6 {[%clk 0:01:06.3]} 29. Rd5 {[%clk 0:02:03.9]}
29... Rc5 {[%clk 0:01:04.3]} 30. Rxc5 {[%clk 0:02:01.6]} 30... bxc5 {[%clk
0:01:04]} 31. Re1 {[%clk 0:01:49.3]} 31... Kf6 {[%clk 0:01:03.5]} 32. Kf2 {[%clk
0:01:49.1]} 32... Ke5 {[%clk 0:01:02.3]} 33. Kf3 {[%clk 0:01:46]} 33... Re7
{[%clk 0:01:00.3]} 34. Rd1 {[%clk 0:01:45.8]} 34... Rb7 {[%clk 0:00:58.2]} 35.
d4+ {[%clk 0:01:46.2]} 35... cxd4 {[%clk 0:00:57.9]} 36. cxd4+ {[%clk
0:01:47.1]} 36... Ke6 {[%clk 0:00:57.9]} 37. Rd2 {[%clk 0:01:41.8]} 37... Rb3+
{[%clk 0:00:56.6]} 38. Kg4 {[%clk 0:01:42.4]} 38... Rb4 {[%clk 0:00:54.2]} 39.
Kh5 {[%clk 0:01:42.5]} 39... Rxa4 {[%clk 0:00:48.9]} 40. Kxh6 {[%clk 0:01:42.9]}
40... Ra5 {[%clk 0:00:44.2]} 41. Kg6 {[%clk 0:01:41.3]} 41... Rb5 {[%clk
0:00:42.4]} 42. d5+ {[%clk 0:01:41.1]} 42... Ke5 {[%clk 0:00:42]} 43. Kxg5
{[%clk 0:01:39.1]} 43... Rb8 {[%clk 0:00:40.1]} 44. Kg6 {[%clk 0:01:23]} 44...
Kxe4 {[%clk 0:00:38.6]} 45. Kf6 {[%clk 0:01:22.1]} 45... Re8 {[%clk 0:00:34.6]}
46. Re2+ {[%clk 0:01:20.6]} 1-0

[Event "*** Titled Tuesday Blitz"]
[Site "Chess.com"]
[Date "2020.05.26"]
[Round "5"]
[White "kinga2008"]
[Black "ChessyInstinct"]
[Result "0-1"]
[WhiteElo "2206"]
[BlackElo "2400"]
[TimeControl "180+1"]
[EndTime "10:55:16 PDT"]
[Termination "ChessyInstinct won by resignation"]

1. e4 {[%clk 0:02:55]} 1... d5 {[%clk 0:02:59.8]} 2. exd5 {[%clk 0:02:49]} 2...
Qxd5 {[%clk 0:03:00.7]} 3. Nc3 {[%clk 0:02:43.4]} 3... Qd6 {[%clk 0:02:54.1]} 4.
d4 {[%clk 0:02:43.3]} 4... c6 {[%clk 0:02:53]} 5. Nf3 {[%clk 0:02:30.4]} 5...
Bg4 {[%clk 0:02:51.7]} 6. Be3 {[%clk 0:02:27.2]} 6... Nf6 {[%clk 0:02:51.4]} 7.
Bc4 {[%clk 0:02:25.4]} 7... e6 {[%clk 0:02:49]} 8. h3 {[%clk 0:02:22.8]} 8...
Bxf3 {[%clk 0:02:29.9]} 9. Qxf3 {[%clk 0:02:21.4]} 9... Nbd7 {[%clk 0:02:30.5]}
10. Ne4 {[%clk 0:02:14.8]} 10... Nxe4 {[%clk 0:02:14.4]} 11. Bd3 {[%clk
0:01:55.9]} 11... Nef6 {[%clk 0:02:12.5]} 12. O-O {[%clk 0:01:47.4]} 12... Qc7
{[%clk 0:02:08.4]} 13. Bf4 {[%clk 0:01:43.2]} 13... Bd6 {[%clk 0:02:07.7]} 14.
Bg5 {[%clk 0:01:38.4]} 14... h6 {[%clk 0:02:07.2]} 15. Bh4 {[%clk 0:01:35.4]}
15... Be7 {[%clk 0:01:44.3]} 16. c4 {[%clk 0:01:26.4]} 16... O-O {[%clk
0:01:35.6]} 17. Rac1 {[%clk 0:01:11.8]} 17... Rfe8 {[%clk 0:01:29.5]} 18. d5
{[%clk 0:00:39.3]} 18... exd5 {[%clk 0:01:14.7]} 19. cxd5 {[%clk 0:00:28.4]}
19... Ne5 {[%clk 0:01:11.8]} 20. Qe3 {[%clk 0:00:18.5]} 20... Nxd5 {[%clk
0:01:06.4]} 21. Qe4 {[%clk 0:00:14.7]} 21... Nxd3 {[%clk 0:01:04]} 22. Qxd3
{[%clk 0:00:12.1]} 22... Nf4 {[%clk 0:00:54.9]} 23. Bg3 {[%clk 0:00:04.4]} 23...
Nxd3 {[%clk 0:00:54.1]} 24. Bxc7 {[%clk 0:00:05.1]} 24... Nxc1 {[%clk
0:00:54.6]} 25. Rxc1 {[%clk 0:00:05.1]} 0-1

[Event "*** Titled Tuesday Blitz"]
[Site "Chess.com"]
[Date "2020.05.26"]
[Round "5"]
[White "ElliPaehtz"]
[Black "K_A_S_T_O_R"]
[Result "0-1"]
[WhiteElo "2488"]
[BlackElo "2720"]
[TimeControl "180+1"]
[EndTime "10:55:21 PDT"]
[Termination "K_A_S_T_O_R won by resignation"]

1. d4 {[%clk 0:03:00.9]} 1... Nf6 {[%clk 0:02:53.2]} 2. Nf3 {[%clk 0:02:59.7]}
2... e6 {[%clk 0:02:53.6]} 3. Bf4 {[%clk 0:02:58.8]} 3... d5 {[%clk 0:02:53.7]}
4. e3 {[%clk 0:02:58.2]} 4... Bd6 {[%clk 0:02:54.2]} 5. Bg3 {[%clk 0:02:57.5]}
5... c5 {[%clk 0:02:54.3]} 6. Nbd2 {[%clk 0:02:55.4]} 6... Qc7 {[%clk
0:02:54.6]} 7. Bxd6 {[%clk 0:02:49.5]} 7... Qxd6 {[%clk 0:02:54.3]} 8. dxc5
{[%clk 0:02:49.6]} 8... Qxc5 {[%clk 0:02:54.4]} 9. c4 {[%clk 0:02:49]} 9... Nc6
{[%clk 0:02:51.2]} 10. Rc1 {[%clk 0:02:46.1]} 10... d4 {[%clk 0:02:41.8]} 11.
exd4 {[%clk 0:02:42.3]} 11... Nxd4 {[%clk 0:02:41.2]} 12. Nxd4 {[%clk
0:02:41.9]} 12... Qxd4 {[%clk 0:02:41.1]} 13. Rc3 {[%clk 0:02:24.4]} 13... O-O
{[%clk 0:02:38.3]} 14. Be2 {[%clk 0:02:13.7]} 14... e5 {[%clk 0:02:26.7]} 15.
O-O {[%clk 0:02:11.8]} 15... Bf5 {[%clk 0:02:25.8]} 16. Nf3 {[%clk 0:02:09.4]}
16... Qc5 {[%clk 0:02:23.9]} 17. Qa4 {[%clk 0:02:00.6]} 17... Rfd8 {[%clk
0:02:14.6]} 18. b4 {[%clk 0:01:58]} 18... Qc7 {[%clk 0:02:13.1]} 19. c5 {[%clk
0:01:22.3]} 19... e4 {[%clk 0:02:07.4]} 20. Nh4 {[%clk 0:01:20.1]} 20... Be6
{[%clk 0:02:03.5]} 21. g3 {[%clk 0:01:14.8]} 21... a6 {[%clk 0:01:59.5]} 22. Ng2
{[%clk 0:01:11]} 22... Rd4 {[%clk 0:01:58.9]} 23. Ne3 {[%clk 0:01:07.1]} 23...
Rad8 {[%clk 0:01:54.7]} 24. Qa3 {[%clk 0:01:05.2]} 24... Rd2 {[%clk 0:01:49.3]}
25. Bc4 {[%clk 0:01:03]} 25... Qe5 {[%clk 0:01:41.5]} 26. Bxe6 {[%clk 0:01:01]}
26... Qxe6 {[%clk 0:01:41.4]} 27. Qb3 {[%clk 0:00:59.5]} 27... Rxa2 {[%clk
0:01:25.1]} 28. Qxe6 {[%clk 0:00:58.4]} 28... fxe6 {[%clk 0:01:26]} 29. Rb3
{[%clk 0:00:52.8]} 29... Rd3 {[%clk 0:01:23.5]} 30. Rbb1 {[%clk 0:00:45.5]}
30... Nd5 {[%clk 0:01:20.6]} 31. Nc4 {[%clk 0:00:43.4]} 31... Nc3 {[%clk
0:01:08.3]} 32. Ra1 {[%clk 0:00:37.6]} 32... Rd4 {[%clk 0:01:06]} 33. Nd6 {[%clk
0:00:25.2]} 33... Rxb4 {[%clk 0:01:03.6]} 34. Rxa2 {[%clk 0:00:24.9]} 34... Nxa2
{[%clk 0:01:04.1]} 35. Rc1 {[%clk 0:00:20.5]} 35... Nxc1 {[%clk 0:01:03.7]} 0-1

[Event "*** Titled Tuesday Blitz"]
[Site "Chess.com"]
[Date "2020.05.26"]
[Round "5"]
[White "Quaternitychess"]
[Black "GHANDEEVAM2003"]
[Result "1-0"]
[WhiteElo "2812"]
[BlackElo "2924"]
[TimeControl "180+1"]
[EndTime "10:55:22 PDT"]
[Termination "Quaternitychess won by resignation"]

1. e4 {[%clk 0:03:00.9]} 1... c5 {[%clk 0:02:58.6]} 2. b3 {[%clk 0:02:52.9]}
2... Nf6 {[%clk 0:02:53.3]} 3. e5 {[%clk 0:02:52]} 3... Nd5 {[%clk 0:02:53.8]}
4. Bb2 {[%clk 0:02:52.7]} 4... g6 {[%clk 0:02:54]} 5. Qf3 {[%clk 0:02:52.3]}
5... Nc7 {[%clk 0:02:50.3]} 6. h4 {[%clk 0:02:51.3]} 6... Ne6 {[%clk 0:02:41.3]}
7. h5 {[%clk 0:02:51]} 7... Nc6 {[%clk 0:02:39.2]} 8. hxg6 {[%clk 0:02:47.9]}
8... fxg6 {[%clk 0:02:40.1]} 9. Bd3 {[%clk 0:02:46.3]} 9... Ncd4 {[%clk
0:01:28.5]} 10. Qg3 {[%clk 0:02:45.1]} 10... Nf5 {[%clk 0:01:25.3]} 11. Rxh7
{[%clk 0:02:26.6]} 11... Rxh7 {[%clk 0:01:26.2]} 12. Qxg6+ {[%clk 0:02:26.5]}
12... Rf7 {[%clk 0:01:26.8]} 13. Bxf5 {[%clk 0:02:26.6]} 13... Qb6 {[%clk
0:01:17.2]} 14. Ne2 {[%clk 0:02:11.6]} 14... Bg7 {[%clk 0:01:04.7]} 15. Na3
{[%clk 0:01:45.9]} 15... d5 {[%clk 0:00:34.7]} 16. exd6 {[%clk 0:01:10.8]} 16...
Qxd6 {[%clk 0:00:35.1]} 17. Nc4 {[%clk 0:01:08.8]} 17... Qd5 {[%clk 0:00:35.3]}
18. Be4 {[%clk 0:00:59]} 18... Qg5 {[%clk 0:00:35.3]} 19. Bxg7 {[%clk
0:00:56.5]} 19... Qh4 {[%clk 0:00:30.1]} 20. g3 {[%clk 0:00:48]} 20... Qh2
{[%clk 0:00:29.2]} 21. O-O-O {[%clk 0:00:45.7]} 21... Nxg7 {[%clk 0:00:28]} 22.
Ne5 {[%clk 0:00:45.4]} 22... Qxf2 {[%clk 0:00:27.6]} 23. Nf4 {[%clk 0:00:44.4]}
23... Qd4 {[%clk 0:00:23]} 24. Qxf7+ {[%clk 0:00:43.3]} 24... Kd8 {[%clk
0:00:23.5]} 25. Qd5+ {[%clk 0:00:34.7]} 1-0

[Event "*** Titled Tuesday Blitz"]
[Site "Chess.com"]
[Date "2020.05.26"]
[Round "5"]
[White "Nafania1"]
[Black "PavelShkapenko"]
[Result "1-0"]
[WhiteElo "2458"]
[BlackElo "2656"]
[TimeControl "180+1"]
[EndTime "10:55:23 PDT"]
[Termination "Nafania1 won by resignation"]

1. e4 {[%clk 0:03:00.9]} 1... c5 {[%clk 0:02:59.7]} 2. Nf3 {[%clk 0:03:00.7]}
2... e6 {[%clk 0:02:59.9]} 3. g3 {[%clk 0:02:59.7]} 3... b6 {[%clk 0:02:58.6]}
4. Bg2 {[%clk 0:02:55.4]} 4... Bb7 {[%clk 0:02:59.1]} 5. d4 {[%clk 0:02:49.8]}
5... Bxe4 {[%clk 0:02:43.7]} 6. Nc3 {[%clk 0:02:49.2]} 6... Bxf3 {[%clk
0:02:43.9]} 7. Qxf3 {[%clk 0:02:41.8]} 7... d5 {[%clk 0:02:44.3]} 8. Nxd5 {[%clk
0:02:41.4]} 8... exd5 {[%clk 0:02:04.9]} 9. Qxd5 {[%clk 0:02:41.2]} 9... Qxd5
{[%clk 0:02:05]} 10. Bxd5 {[%clk 0:02:40.7]} 10... cxd4 {[%clk 0:02:05.5]} 11.
Bxa8 {[%clk 0:02:39.9]} 11... Bb4+ {[%clk 0:02:06]} 12. Bd2 {[%clk 0:02:39.4]}
12... Bxd2+ {[%clk 0:02:05]} 13. Kxd2 {[%clk 0:02:39.8]} 13... Nf6 {[%clk
0:02:04.7]} 14. Rhe1+ {[%clk 0:02:33.9]} 14... Kd7 {[%clk 0:02:04.8]} 15. Bf3
{[%clk 0:02:28.5]} 15... Na6 {[%clk 0:02:03]} 16. Rad1 {[%clk 0:02:25.8]} 16...
d3 {[%clk 0:01:40.1]} 17. Kc1 {[%clk 0:02:20.2]} 17... Nc5 {[%clk 0:01:36.2]}
18. b4 {[%clk 0:02:19.3]} 18... Ne6 {[%clk 0:01:35.5]} 19. Rxd3+ {[%clk
0:02:19]} 19... Ke7 {[%clk 0:01:35]} 20. Kb2 {[%clk 0:02:08.9]} 20... Rc8 {[%clk
0:01:34.4]} 21. Rc3 {[%clk 0:02:05.2]} 21... Rd8 {[%clk 0:01:34.1]} 22. Rc7+
{[%clk 0:02:04.1]} 22... Rd7 {[%clk 0:01:32.9]} 23. Rxd7+ {[%clk 0:02:03]} 23...
Kxd7 {[%clk 0:01:33.5]} 24. c4 {[%clk 0:02:01.1]} 24... Kc7 {[%clk 0:01:32.8]}
25. Kc3 {[%clk 0:01:57.2]} 25... Ng5 {[%clk 0:01:32]} 26. Bg2 {[%clk 0:01:52.1]}
26... Kd6 {[%clk 0:01:31.8]} 27. f4 {[%clk 0:01:50.4]} 27... Ne6 {[%clk
0:01:31.4]} 28. Bf3 {[%clk 0:01:46.4]} 28... h6 {[%clk 0:01:28.6]} 29. a4 {[%clk
0:01:43.6]} 29... g5 {[%clk 0:01:20.3]} 30. f5 {[%clk 0:01:43.9]} 30... Nf8
{[%clk 0:01:15.5]} 31. Kd4 {[%clk 0:01:41.6]} 31... N8d7 {[%clk 0:01:15.5]} 32.
h3 {[%clk 0:01:35.7]} 32... h5 {[%clk 0:01:09]} 33. Rc1 {[%clk 0:01:26.6]} 33...
g4 {[%clk 0:01:05.4]} 34. c5+ {[%clk 0:01:26.9]} 34... bxc5+ {[%clk 0:01:05.1]}
35. bxc5+ {[%clk 0:01:27.3]} 35... Kc7 {[%clk 0:01:05.3]} 36. hxg4 {[%clk
0:01:26.6]} 36... hxg4 {[%clk 0:01:05.4]} 37. Bd5 {[%clk 0:01:11]} 37... Nh5
{[%clk 0:01:03.5]} 38. Rc3 {[%clk 0:01:06.3]} 38... f6 {[%clk 0:01:01.7]} 39.
Rb3 {[%clk 0:01:04.6]} 39... Ne5 {[%clk 0:01:01.5]} 40. Rb7+ {[%clk 0:01:03.7]}
40... Kc8 {[%clk 0:01:01.1]} 41. Rxa7 {[%clk 0:01:00.6]} 41... Nxg3 {[%clk
0:01:00.4]} 42. c6 {[%clk 0:00:58]} 42... Ne2+ {[%clk 0:00:54.5]} 43. Ke3 {[%clk
0:00:53.6]} 43... Nc3 {[%clk 0:00:51.8]} 44. Be6+ {[%clk 0:00:53.7]} 44... Kb8
{[%clk 0:00:51.8]} 45. c7+ {[%clk 0:00:54.1]} 45... Kxa7 {[%clk 0:00:52]} 46.
c8=Q {[%clk 0:00:54.1]} 1-0

[Event "*** Titled Tuesday Blitz"]
[Site "Chess.com"]
[Date "2020.05.26"]
[Round "5"]
[White "Jenia84"]
[Black "underdogchss"]
[Result "0-1"]
[WhiteElo "2204"]
[BlackElo "2401"]
[TimeControl "180+1"]
[EndTime "10:55:23 PDT"]
[Termination "underdogchss won by resignation"]

1. e4 {[%clk 0:03:00.9]} 1... c5 {[%clk 0:02:59.5]} 2. Nf3 {[%clk 0:02:57.4]}
2... d6 {[%clk 0:02:58.3]} 3. d4 {[%clk 0:02:56.8]} 3... cxd4 {[%clk 0:02:59.2]}
4. Nxd4 {[%clk 0:02:57.2]} 4... Nf6 {[%clk 0:02:59.3]} 5. Nc3 {[%clk 0:02:57.3]}
5... a6 {[%clk 0:02:58.7]} 6. Be2 {[%clk 0:02:55.5]} 6... e5 {[%clk 0:02:58.1]}
7. Nb3 {[%clk 0:02:52.9]} 7... Be7 {[%clk 0:02:57.9]} 8. Be3 {[%clk 0:02:52.4]}
8... Be6 {[%clk 0:02:56.2]} 9. Bf3 {[%clk 0:02:42.7]} 9... Nbd7 {[%clk 0:02:54]}
10. Qd2 {[%clk 0:02:33.4]} 10... Nb6 {[%clk 0:02:44.8]} 11. Bxb6 {[%clk
0:02:02.9]} 11... Qxb6 {[%clk 0:02:43.8]} 12. Nd5 {[%clk 0:02:01.8]} 12... Nxd5
{[%clk 0:02:30.2]} 13. exd5 {[%clk 0:02:01.7]} 13... Bd7 {[%clk 0:02:18.8]} 14.
c4 {[%clk 0:01:56]} 14... a5 {[%clk 0:02:11.3]} 15. O-O {[%clk 0:01:54.2]} 15...
O-O {[%clk 0:02:09.6]} 16. Qe3 {[%clk 0:01:47.7]} 16... Qxe3 {[%clk 0:02:05.7]}
17. fxe3 {[%clk 0:01:47.4]} 17... f5 {[%clk 0:02:05.6]} 18. Nd2 {[%clk
0:01:39.9]} 18... e4 {[%clk 0:02:03.7]} 19. Be2 {[%clk 0:01:38.9]} 19... Bf6
{[%clk 0:01:52.9]} 20. Rab1 {[%clk 0:01:38]} 20... a4 {[%clk 0:01:52.7]} 21.
Rfc1 {[%clk 0:01:31.3]} 21... b6 {[%clk 0:01:25.2]} 22. Kf2 {[%clk 0:01:32.2]}
22... Be5 {[%clk 0:01:23.4]} 23. g3 {[%clk 0:01:33.1]} 23... g5 {[%clk 0:01:23]}
24. Rc2 {[%clk 0:01:34]} 24... f4 {[%clk 0:01:20.1]} 25. gxf4 {[%clk 0:01:31]}
25... gxf4 {[%clk 0:01:21]} 26. Nf1 {[%clk 0:01:28.8]} 26... fxe3+ {[%clk
0:01:10.6]} 27. Kxe3 {[%clk 0:01:26.5]} 27... Bf4+ {[%clk 0:01:10.9]} 28. Kd4
{[%clk 0:01:22.6]} 28... Be5+ {[%clk 0:00:55.1]} 29. Ke3 {[%clk 0:01:21.9]}
29... Rae8 {[%clk 0:00:44.1]} 30. Ng3 {[%clk 0:01:19.7]} 30... Bf4+ {[%clk
0:00:43.5]} 31. Kd4 {[%clk 0:01:19.6]} 31... e3 {[%clk 0:00:38.3]} 32. Rf1
{[%clk 0:01:07.7]} 32... Be5+ {[%clk 0:00:30.4]} 33. Kd3 {[%clk 0:01:06.9]}
33... Bxg3 {[%clk 0:00:20.3]} 34. hxg3 {[%clk 0:01:00.3]} 34... Rxf1 {[%clk
0:00:18.9]} 35. Bxf1 {[%clk 0:00:59.8]} 35... Bf5+ {[%clk 0:00:19]} 0-1

[Event "*** Titled Tuesday Blitz"]
[Site "Chess.com"]
[Date "2020.05.26"]
[Round "5"]
[White "StephenDedalus83"]
[Black "narutosmith"]
[Result "1-0"]
[WhiteElo "2742"]
[BlackElo "2270"]
[TimeControl "180+1"]
[EndTime "10:55:27 PDT"]
[Termination "StephenDedalus83 won on time"]

1. e4 {[%clk 0:03:00.9]} 1... c5 {[%clk 0:02:59.8]} 2. Nf3 {[%clk 0:03:00.6]}
2... e6 {[%clk 0:03:00]} 3. d4 {[%clk 0:03:01]} 3... cxd4 {[%clk 0:03:00.9]} 4.
Nxd4 {[%clk 0:03:01.1]} 4... Nc6 {[%clk 0:03:01.6]} 5. Nc3 {[%clk 0:03:00.8]}
5... Qc7 {[%clk 0:03:01.7]} 6. g3 {[%clk 0:02:58.5]} 6... a6 {[%clk 0:03:01]} 7.
Bg2 {[%clk 0:02:58.4]} 7... Nf6 {[%clk 0:03:01.6]} 8. O-O {[%clk 0:02:58.2]}
8... h5 {[%clk 0:03:01.9]} 9. h3 {[%clk 0:02:56.2]} 9... Bc5 {[%clk 0:03:01.1]}
10. Nb3 {[%clk 0:02:49]} 10... Ba7 {[%clk 0:02:57]} 11. Bf4 {[%clk 0:02:47.5]}
11... Ne5 {[%clk 0:02:54.6]} 12. Qe2 {[%clk 0:02:45.7]} 12... d6 {[%clk
0:02:44.4]} 13. Rad1 {[%clk 0:02:44.6]} 13... Nfd7 {[%clk 0:01:55.5]} 14. Nd4
{[%clk 0:02:38]} 14... h4 {[%clk 0:01:50]} 15. g4 {[%clk 0:02:36.7]} 15... Nc4
{[%clk 0:01:36.5]} 16. Bc1 {[%clk 0:02:35.5]} 16... O-O {[%clk 0:01:24.8]} 17.
Kh1 {[%clk 0:02:30.1]} 17... b5 {[%clk 0:00:57]} 18. Nf3 {[%clk 0:02:08.3]}
18... Bb7 {[%clk 0:00:54.8]} 19. Nxh4 {[%clk 0:02:07.8]} 19... Rac8 {[%clk
0:00:33.4]} 20. f4 {[%clk 0:02:02.9]} 20... g5 {[%clk 0:00:29]} 21. fxg5 {[%clk
0:02:01.7]} 21... Nde5 {[%clk 0:00:22.3]} 22. Nb1 {[%clk 0:01:54.6]} 22... Na5
{[%clk 0:00:15.9]} 23. c3 {[%clk 0:01:53.6]} 23... Nac6 {[%clk 0:00:15.1]} 24.
Rf6 {[%clk 0:01:52.3]} 24... Ne7 {[%clk 0:00:14.5]} 25. Rdf1 {[%clk 0:01:50.6]}
25... N7g6 {[%clk 0:00:14.4]} 26. Nxg6 {[%clk 0:01:49.8]} 26... Nxg6 {[%clk
0:00:14.5]} 27. Nd2 {[%clk 0:01:48.7]} 27... Bb8 {[%clk 0:00:14.3]} 28. Nf3
{[%clk 0:01:47.2]} 28... d5 {[%clk 0:00:13.9]} 29. exd5 {[%clk 0:01:45.2]} 29...
Bxd5 {[%clk 0:00:13.4]} 30. Qf2 {[%clk 0:01:37.6]} 30... Kg7 {[%clk 0:00:12.4]}
31. Be3 {[%clk 0:01:21]} 31... Rh8 {[%clk 0:00:12.3]} 32. Kg1 {[%clk 0:01:21]}
32... e5 {[%clk 0:00:07.6]} 33. Nd2 {[%clk 0:01:15.4]} 33... Bxg2 {[%clk
0:00:06.7]} 34. Rxf7+ {[%clk 0:01:14.2]} 34... Kg8 {[%clk 0:00:02.8]} 35. Rxc7
{[%clk 0:01:13.3]} 35... Rxc7 {[%clk 0:00:03.7]} 36. Qxg2 {[%clk 0:01:12.5]} 1-0

[Event "*** Titled Tuesday Blitz"]
[Site "Chess.com"]
[Date "2020.05.26"]
[Round "5"]
[White "Arjun2002"]
[Black "Majesth"]
[Result "1-0"]
[WhiteElo "2663"]
[BlackElo "2443"]
[TimeControl "180+1"]
[EndTime "10:55:29 PDT"]
[Termination "Arjun2002 won on time"]

1. e4 {[%clk 0:03:00.9]} 1... e6 {[%clk 0:02:55.6]} 2. d4 {[%clk 0:03:00.5]}
2... d5 {[%clk 0:02:56.1]} 3. Nc3 {[%clk 0:03:00.4]} 3... dxe4 {[%clk
0:02:55.8]} 4. Nxe4 {[%clk 0:02:59.4]} 4... Nd7 {[%clk 0:02:56.2]} 5. Nf3 {[%clk
0:02:56.3]} 5... Ngf6 {[%clk 0:02:56.3]} 6. Bg5 {[%clk 0:02:56.3]} 6... Be7
{[%clk 0:02:53.6]} 7. Bxf6 {[%clk 0:02:53.7]} 7... Bxf6 {[%clk 0:02:50.3]} 8.
Bd3 {[%clk 0:02:40.8]} 8... O-O {[%clk 0:02:46]} 9. Qe2 {[%clk 0:02:34.5]} 9...
c5 {[%clk 0:02:34.1]} 10. O-O-O {[%clk 0:02:23.5]} 10... cxd4 {[%clk 0:02:26.4]}
11. h4 {[%clk 0:02:23.3]} 11... b6 {[%clk 0:01:45.4]} 12. Nfg5 {[%clk
0:02:03.6]} 12... h6 {[%clk 0:01:35.1]} 13. Nh7 {[%clk 0:01:40]} 13... Re8
{[%clk 0:01:34.5]} 14. g4 {[%clk 0:01:21.8]} 14... Be5 {[%clk 0:00:54.2]} 15. g5
{[%clk 0:01:21.2]} 15... Kxh7 {[%clk 0:00:32.3]} 16. Nf6+ {[%clk 0:01:10.5]}
16... Kh8 {[%clk 0:00:32]} 17. Nxe8 {[%clk 0:01:10.5]} 17... Qxe8 {[%clk
0:00:11.2]} 18. Qe4 {[%clk 0:01:09.7]} 18... g6 {[%clk 0:00:11.2]} 19. Qxa8
{[%clk 0:01:08.4]} 19... Nc5 {[%clk 0:00:07.4]} 20. Kb1 {[%clk 0:01:02.9]} 20...
h5 {[%clk 0:00:07.1]} 21. Rhe1 {[%clk 0:01:01.4]} 21... Bg7 {[%clk 0:00:04.1]}
22. Bb5 {[%clk 0:00:59.4]} 22... Qd8 {[%clk 0:00:02.7]} 23. b4 {[%clk
0:00:54.1]} 23... a6 {[%clk 0:00:01.7]} 24. bxc5 {[%clk 0:00:52.2]} 24... axb5
{[%clk 0:00:01.2]} 25. cxb6 {[%clk 0:00:52.3]} 1-0